[Event "German Bundesliga 2023-24"]
[Site "Germany"]
[Date "2024.02.25"]
[Round "11.34"]
[White "Fridman, Daniel"]
[Black "Pavlidis, Antonios"]
[Result "1/2-1/2"]
[ECO "A49"]
[WhiteElo "2588"]
[BlackElo "2566"]
[Annotator "TA"]
[PlyCount "120"]
[EventDate "2023.10.20"]
[EventType "team-tourn"]
[EventCountry "GER"]
[SourceTitle "playchess.com"]
[Source "ChessBase"]
[SourceQuality "1"]
[TimeControl "40/6000+30:3000+30"]

{[%evp 28,120,48,41,35,9,9,0,1,0,0,0,0,-57,-72,-70,32,27,27,43,38,40,35,38,39,41,94,89,108,95,102,111,95,102,106,104,91,104,98,106,108,95,122,125,127,127,121,112,128,109,109,83,126,118,118,131,131,114,128,121,135,78,113,99,99,106,99,93,114,104,114,99,114,114,114,114,114,114,114,114,114,38,38,38,43,43,114,22,38,22,113,27,38,38,56]} 1. Nf3 {[%emt 0:00:03]} Nf6 {[%emt 0:00:06]} 2. g3 {[%emt 0:00:03]} g6 {[%emt 0:00:07]} 3. Bg2 {[%emt 0:00:04]} Bg7 {[%emt 0:00:06]} 4. d4 {[%emt 0:00:04]} O-O {[%emt 0:00:09]} 5. O-O {[%emt 0:00:02]} d6 {[%emt 0:00:10]} 6. b3 {[%emt 0:00:06]} e5 {[%emt 0:01:33]} 7. dxe5 {[%emt 0:00:07]} dxe5 {[%emt 0:00:06]} 8. Ba3 {[%emt 0:00:04]} Qxd1 {[%emt 0:01:52] 8...e4 might become the main line. A49: 1 d4 Nf6 2 Nf3 g6 3 g3: Anti-King's Indian systems.} 9. Rxd1 {[%emt 0:00:05]} Re8 {[%emt 0:00:07]} 10. c4 {[%emt 0:08:01]} Nc6 {[%emt 0:12:38]} 11. Nc3 {[%emt 0:20:26]} e4 {[%emt 0:12:22]} 12. Ne1 {[%emt 0:01:41]} e3 {[%emt 0:07:18]} 13. f3 {[%emt 0:03:55]} Bf5 {[%emt 0:09:23]} 14. g4 {[%emt 0:09:06]} Be6 {[%emt 0:01:23]} 15. Rac1 $146 {[%emt 0:00:13]} ({Predecessor:} 15. Bb2 h5 16. h3 Nd7 17. Nc2 f5 18. Nxe3 Bd4 19. Rxd4 Nxd4 20. gxf5 Bxf5 21. Nxf5 Nxe2+ {1-0 Sargissian,G (2672)-Hansen,T (2408) London Classic op 2017 (5)}) 15... Rad8 {[%emt 0:09:29]} 16. Rxd8 {[%emt 0:14:39]} Rxd8 {[%emt 0:06:32]} 17. Bc5 {[%emt 0:02:26]} Nd4 {[%emt 0:01:29]} 18. Nc2 {[%emt 0:04:12]} Nxc2 {[%emt 0:12:39]} 19. Rxc2 {[%emt 0:00:11]} Rd2 {[%emt 0:03:52]} 20. Rxd2 {[%emt 0:02:02]} (20. Rc1 $1 $11) 20... exd2 $15 {[%emt 0:00:02]} 21. Nd1 {[%emt 0:01:16]} a5 {[%emt 0:00:04]} (21... b5 $1 $15 22. g5 (22. Bxa7 $2 bxc4 23. bxc4 Bxc4 $19) (22. cxb5 $2 Nd5 $19) 22... Nd7 23. Bxa7 bxc4 24. bxc4 Bxc4) 22. Be3 $14 {[%emt 0:03:20]} a4 {[%emt 0:00:38]} 23. Bxd2 {[%emt 0:01:53]} (23. bxa4 Bxc4 24. Bxd2 Bxe2 $11) 23... axb3 {[%emt 0:00:05]} 24. axb3 {[%emt 0:00:08]} Nd7 {[%emt 0:20:13]} 25. Bc3 {[%emt 0:16:20]} Bh6 {[%emt 0:01:21]} 26. Bd4 {[%emt 0:02:12]} c5 {[%emt 0:00:46]} (26... Bf8 $1 $14) 27. Be3 $16 {[%emt 0:00:55]} Bg7 {[%emt 0:00:20] [#]} 28. Nf2 $1 {[%emt 0:00:51]} b5 {[%emt 0:01:49]} 29. cxb5 {[%emt 0:00:22]} Bxb3 {[%emt 0:00:04]} 30. f4 {[%emt 0:00:27]} Ba4 {[%emt 0:00:38]} 31. b6 {[%emt 0:07:00]} Nxb6 {[%emt 0:00:08]} 32. Bxc5 {[%emt 0:00:05]} Nd7 {[%emt 0:00:04]} 33. Ba7 {[%emt 0:00:24]} Bb3 {[%emt 0:00:33]} 34. Bc6 {[%emt 0:05:04]} Nf6 {[%emt 0:00:52]} 35. e4 {[%emt 0:00:59]} Be6 {[%emt 0:02:22]} 36. h3 {[%emt 0:02:12]} Bd7 {[%emt 0:01:35]} 37. Bb7 {[%emt 0:00:18]} Ne8 {[%emt 0:00:14]} 38. Bc5 {[%emt 0:03:06]} Nc7 {[%emt 0:00:21]} 39. e5 {[%emt 0:02:10]} Ne6 {[%emt 0:03:20]} 40. Be3 {[%emt 0:00:22]} g5 {[%emt 0:00:18]} 41. f5 {[%emt 0:51:23]} ({Don't play} 41. fxg5 Bxe5 42. Ne4 Kg7 $14) 41... Nd8 {[%emt 0:50:16]} 42. Bd5 {[%emt 0:00:10]} Bxe5 {[%emt 0:00:15]} 43. Bxg5 {[%emt 0:02:47]} Nc6 {[%emt 0:02:45]} 44. Nd3 {[%emt 0:00:00]} ({White should try} 44. Kg2) 44... Bc3 {[%emt 0:00:00]} 45. Kg2 {[%emt 0:00:00]} Nb4 {[%emt 0:00:00]} 46. Nxb4 {[%emt 0:00:00]} Bxb4 {[%emt 0:00:00]} 47. Bh6 {[%emt 0:00:00]} Bc3 {[%emt 0:00:00]} 48. Kf3 {[%emt 0:00:00]} Bg7 {[%emt 0:00:00]} 49. Bg5 {[%emt 0:00:00]} h5 {[%emt 0:00:00]} 50. f6 {[%emt 0:00:00]} ({Not} 50. gxh5 Bxf5 51. Kg3 Be5+ 52. Bf4 Bc3 $17 (52... Bxf4+ 53. Kxf4 Bxh3 54. h6 $11)) 50... hxg4+ {[%emt 0:00:00]} 51. hxg4 {[%emt 0:00:00]} Bf8 {[%emt 0:00:00]} 52. Bf4 {[%emt 0:00:00]} Ba4 {[%emt 0:00:00]} 53. Be4 {[%emt 0:00:00]} Bb4 {[%emt 0:00:00]} 54. Bh6 {[%emt 0:00:00]} (54. g5 $16) 54... Bd1+ $14 {[%emt 0:00:00]} 55. Kg3 {[%emt 0:00:00]} Be1+ {[%emt 0:00:00]} 56. Kh3 {[%emt 0:00:00]} Be2 {[%emt 0:00:00]} (56... Bb3 $14) 57. Bf5 {[%emt 0:00:00]} ({Better is} 57. Bf4 $16) 57... Bf1+ $11 {[%emt 0:00:00]} 58. Kh2 {[%emt 0:00:00]} Be2 {[%emt 0:00:00]} (58... Bc3 $11) 59. Kg2 {[%emt 0:00:00]} (59. Bf4 $16) 59... Bh4 {[%emt 0:00:00]} 60. g5 {[%emt 0:00:00]} Bh5 {[%emt 0:00:00]} 1/2-1/2

[Event "German Bundesliga 2023-24"]
[Site "Germany"]
[Date "2024.02.25"]
[Round "11.35"]
[White "Plat, Vojtech"]
[Black "Tregubov, Pavel V."]
[Result "1/2-1/2"]
[ECO "C42"]
[WhiteElo "2503"]
[BlackElo "2567"]
[Annotator "TA"]
[PlyCount "41"]
[EventDate "2023.10.20"]
[EventType "team-tourn"]
[EventCountry "GER"]
[SourceTitle "playchess.com"]
[Source "ChessBase"]
[SourceQuality "1"]
[TimeControl "40/6000+30:3000+30"]

{[%evp 13,41,25,33,27,26,31,62,15,21,11,12,7,9,11,11,12,29,15,19,23,38,17,62,25,21,5,6,12,0,9]} 1. e4 {[%emt 0:00:04]} e5 {[%emt 0:00:07]} 2. Nf3 {[%emt 0:00:06]} Nf6 {[%emt 0:00:05]} 3. Nxe5 {[%emt 0:00:38]} d6 {[%emt 0:00:09]} 4. Nf3 {[%emt 0:00:04]} Nxe4 {[%emt 0:00:06]} 5. Nc3 {[%emt 0:00:14]} Nf6 {[%emt 0:00:37]} 6. d4 {[%emt 0:00:34]} Be7 {[%emt 0:00:09]} 7. Bd3 {[%emt 0:03:20]} O-O {[%emt 0:00:08]} 8. h3 {[%emt 0:00:11]} Nbd7 {[%emt 0:01:15]} 9. O-O {[%emt 0:00:07]} b6 {[%emt 0:00:35]} 10. Re1 {[%emt 0:03:30] White has more active pieces. The black rooks are passive.} (10. Nh4 $14) 10... Bb7 {[%emt 0:00:31]} 11. Ne4 {[%emt 0:02:09]} Nxe4 {[%emt 0:03:03]} 12. Bxe4 {[%emt 0:00:09]} Bxe4 {[%emt 0:00:13]} 13. Rxe4 {[%emt 0:00:04]} Re8 {[%emt 0:05:29]} 14. Qd3 {[%emt 0:01:03]} d5 {[%emt 0:19:30]} 15. Re1 {[%emt 0:01:14]} Bd6 {[%emt 0:03:19]} 16. Bg5 {[%emt 0:00:18]} f6 {[%emt 0:07:06]} 17. Bd2 {[%emt 0:03:58]} c6 {[%emt 0:02:11] Repels Qb5} 18. Rxe8+ {[%emt 0:00:19]} Qxe8 {[%emt 0:00:07]} 19. Re1 {[%emt 0:00:05] The position is equal.} Qf7 {[%emt 0:01:33]} 20. Qa6 {[%emt 0:03:35]} Nf8 {[%emt 0:02:13]} 21. a4 {[%emt 0:00:11] Weighted Error Value: White=0.13 (very precise) /Black=0.09 (flawless) .  Mistake:       	White=1     	---        Inaccurate:     	White=1     	Black=2      OK:         	White=4     	Black=3      Best:        	---       	Black=1} 1/2-1/2

[Event "German Bundesliga 2023-24"]
[Site "Germany"]
[Date "2024.02.25"]
[Round "11.36"]
[White "Vrolijk, Liam"]
[Black "Burg, Twan"]
[Result "0-1"]
[ECO "A20"]
[WhiteElo "2569"]
[BlackElo "2530"]
[Annotator "RC"]
[PlyCount "82"]
[EventDate "2023.10.20"]
[EventType "team-tourn"]
[EventCountry "GER"]
[SourceTitle "playchess.com"]
[Source "ChessBase"]
[SourceQuality "1"]
[TimeControl "40/6000+30:3000+30"]

1. c4 {[%emt 0:00:04]} e5 {[%emt 0:00:35]} 2. g3 {[%emt 0:00:11]} Nf6 {[%emt 0:00:12]} 3. Bg2 {[%emt 0:00:10]} c6 {[%emt 0:00:03]} 4. d4 {[%emt 0:03:16]} e4 {[%emt 0:00:51]} 5. Qa4 {[%emt 0:09:17]} d5 {[%emt 0:02:03]} 6. cxd5 {[%emt 0:02:34]} b5 {[%emt 0:00:05]} 7. Qb3 {[%emt 0:03:11]} cxd5 {[%emt 0:01:21]} 8. Bg5 {[%emt 0:05:16]} Qa5+ {[%emt 0:07:28]} 9. Kf1 {[%emt 0:11:55]} Nbd7 {[%emt 0:02:26]} 10. Nh3 {[%emt 0:13:38]} Bb7 {[%emt 0:05:26]} 11. Nd2 {[%emt 0:11:20]} Bd6 {[%emt 0:06:08]} 12. f3 {[%emt 0:04:16]} O-O {[%emt 0:07:04]} 13. Kf2 {[%emt 0:06:09]} h6 {[%emt 0:10:22]} 14. Be3 {[%emt 0:00:19]} Nb6 {[%emt 0:00:24]} 15. Rhd1 {[%emt 0:03:42]} Nc4 {[%emt 0:03:37]} 16. Kg1 {[%emt 0:05:14]} Rfe8 {[%emt 0:02:59]} 17. fxe4 {[%emt 0:06:15]} Nxe3 {[%emt 0:02:49]} 18. Qxe3 {[%emt 0:03:23]} dxe4 {[%emt 0:00:05]} 19. Nb3 {[%emt 0:00:36]} Qb6 {[%emt 0:00:27]} 20. Nc5 {[%emt 0:02:26]} Ng4 {[%emt 0:11:27]} 21. Qc1 {[%emt 0:00:09]} Rac8 {[%emt 0:02:19]} 22. b4 {[%emt 0:00:20]} f5 {[%emt 0:07:16]} 23. Rf1 {[%emt 0:01:51]} Rf8 {[%emt 0:01:38]} 24. Qd2 {[%emt 0:01:46]} Rf7 {[%emt 0:02:42]} 25. e3 {[%emt 0:00:50]} Bd5 {[%emt 0:04:17]} 26. a4 {[%emt 0:03:18]} Qb8 {[%emt 0:04:27]} 27. Na6 {[%emt 0:04:07]} Qb6 {[%emt 0:00:31]} 28. Nc5 {[%emt 0:00:26]} Qb8 {[%emt 0:00:04]} 29. Na6 {[%emt 0:00:39]} Qb6 {[%emt 0:00:16]} 30. Nc5 {[%emt 0:00:18]} Qc7 {[%emt 0:09:59]} 31. Rfc1 {[%emt 0:02:39]} Bxg3 {[%emt 0:02:52]} 32. hxg3 {[%emt 0:01:17]} Qxg3 {[%emt 0:00:06]} 33. Rc3 {[%emt 0:00:58]} Bc4 {[%emt 0:01:17]} 34. Rxc4 {[%emt 0:00:39]} bxc4 {[%emt 0:00:03]} 35. Qe1 {[%emt 0:03:23]} Qh2+ {[%emt 0:05:36]} 36. Kf1 {[%emt 0:00:02]} f4 {[%emt 0:00:07]} 37. exf4 {[%emt 0:02:00]} Rxf4+ {[%emt 0:00:53]} 38. Nxf4 {[%emt 0:00:06]} Qxf4+ {[%emt 0:00:04]} 39. Ke2 {[%emt 0:00:51]} Qe3+ {[%emt 0:00:49]} 40. Kd1 {[%emt 0:00:06]} Qxd4+ {[%emt 0:00:05]} 41. Ke2 {[%emt 0:51:07]} Rxc5 {[%emt 0:55:40]} 0-1

[Event "German Bundesliga 2023-24"]
[Site "Germany"]
[Date "2024.02.25"]
[Round "11.37"]
[White "Swinkels, Robin"]
[Black "Zelbel, Patrick"]
[Result "1/2-1/2"]
[ECO "E73"]
[WhiteElo "2515"]
[BlackElo "2478"]
[Annotator "ChessBase"]
[PlyCount "56"]
[EventDate "2023.10.20"]
[EventType "team-tourn"]
[EventCountry "GER"]
[SourceTitle "playchess.com"]
[Source "ChessBase"]
[SourceQuality "1"]
[TimeControl "40/6000+30:3000+30"]

1. d4 {[%emt 0:00:03]} Nf6 {[%emt 0:00:02]} 2. c4 {[%emt 0:00:07]} g6 {[%emt 0:00:08]} 3. Nc3 {[%emt 0:00:16]} Bg7 {[%emt 0:00:02]} 4. e4 {[%emt 0:00:06]} d6 {[%emt 0:00:03]} 5. Be2 {[%emt 0:00:28]} O-O {[%emt 0:00:06]} 6. Be3 {[%emt 0:00:09]} Nc6 {[%emt 0:00:05]} 7. Nf3 {[%emt 0:01:06]} Ng4 {[%emt 0:00:06]} 8. Bg5 {[%emt 0:00:33]} h6 {[%emt 0:00:14]} 9. Bh4 {[%emt 0:00:10]} g5 {[%emt 0:01:09]} 10. Bg3 {[%emt 0:00:27]} e5 {[%emt 0:00:12]} 11. d5 {[%emt 0:00:25]} Nd4 {[%emt 0:34:50]} 12. h3 {[%emt 0:00:33]} Nf6 {[%emt 0:03:59]} 13. Nxd4 {[%emt 0:00:22]} exd4 {[%emt 0:00:04]} 14. Qxd4 {[%emt 0:00:05]} Nh5 {[%emt 0:01:57]} 15. Qe3 {[%emt 0:01:08]} Nxg3 {[%emt 0:01:13]} 16. Qxg3 {[%emt 0:00:04]} Qe7 {[%emt 0:11:29]} 17. h4 {[%emt 0:32:25]} Be5 {[%emt 0:07:44]} 18. Qe3 {[%emt 0:02:39]} f5 {[%emt 0:02:25]} 19. hxg5 {[%emt 0:01:03]} hxg5 {[%emt 0:12:45]} 20. exf5 {[%emt 0:03:50]} Rxf5 {[%emt 0:03:18]} 21. Kf1 {[%emt 0:13:56]} Rf7 {[%emt 0:08:49]} 22. Rh5 {[%emt 0:08:54]} Rg7 {[%emt 0:03:26]} 23. Ne4 {[%emt 0:05:31]} Bf5 {[%emt 0:08:43]} 24. Ng3 {[%emt 0:09:25]} Bd7 {[%emt 0:01:27]} 25. Ne4 {[%emt 0:13:50]} Bf4 {[%emt 0:02:21]} 26. Qd4 {[%emt 0:00:02]} Be5 {[%emt 0:00:10]} 27. Qe3 {[%emt 0:00:16]} Bf4 {[%emt 0:00:10]} 28. Qd4 {[%emt 0:00:01]} Be5 {[%emt 0:00:28]} 1/2-1/2

[Event "German Bundesliga 2023-24"]
[Site "Germany"]
[Date "2024.02.25"]
[Round "11.38"]
[White "Hausrath, Daniel"]
[Black "Cyborowski, Lukasz"]
[Result "1/2-1/2"]
[ECO "A07"]
[WhiteElo "2462"]
[BlackElo "2479"]
[Annotator "RC"]
[PlyCount "40"]
[EventDate "2023.10.20"]
[EventType "team-tourn"]
[EventCountry "GER"]
[SourceTitle "playchess.com"]
[Source "ChessBase"]
[SourceQuality "1"]
[TimeControl "40/6000+30:3000+30"]

1. Nf3 {[%emt 0:00:06]} d5 {[%emt 0:00:18]} 2. g3 {[%emt 0:00:36]} b6 {[%emt 0:02:32]} 3. Bg2 {[%emt 0:00:42]} Bb7 {[%emt 0:00:07]} 4. O-O {[%emt 0:02:11]} e6 {[%emt 0:01:40]} 5. c4 {[%emt 0:03:57]} dxc4 {[%emt 0:01:15]} 6. Qa4+ {[%emt 0:00:33]} Nd7 {[%emt 0:00:40]} 7. Qxc4 {[%emt 0:00:08]} Ngf6 {[%emt 0:00:59]} 8. b3 {[%emt 0:02:26]} Be7 {[%emt 0:02:56]} 9. Bb2 {[%emt 0:01:17]} c5 {[%emt 0:07:07]} 10. d3 {[%emt 0:06:03]} O-O {[%emt 0:02:02]} 11. Nbd2 {[%emt 0:04:42]} a6 {[%emt 0:04:07]} 12. e4 {[%emt 0:05:46]} b5 {[%emt 0:03:59]} 13. Qc2 {[%emt 0:00:43]} Rc8 {[%emt 0:00:00]} 14. Rac1 {[%emt 0:15:39]} Qb6 {[%emt 0:05:22]} 15. Qb1 {[%emt 0:06:38]} Rfd8 {[%emt 0:01:30]} 16. Rfd1 {[%emt 0:08:06]} Qa7 {[%emt 0:06:08]} 17. Bc3 {[%emt 0:09:27]} Qb6 {[%emt 0:03:11]} 18. Bb2 {[%emt 0:00:17]} Qa7 {[%emt 0:00:23]} 19. Bc3 {[%emt 0:00:12]} Qb6 {[%emt 0:00:10]} 20. Bb2 {[%emt 0:00:28]} Qa7 {[%emt 0:00:03]} 1/2-1/2

[Event "German Bundesliga 2023-24"]
[Site "Germany"]
[Date "2024.02.25"]
[Round "11.39"]
[White "Jaracz, Pawel"]
[Black "Buckels, Valentin"]
[Result "1/2-1/2"]
[ECO "C78"]
[WhiteElo "2472"]
[BlackElo "2429"]
[Annotator "RC"]
[PlyCount "43"]
[EventDate "2023.10.20"]
[EventType "team-tourn"]
[EventCountry "GER"]
[SourceTitle "playchess.com"]
[Source "ChessBase"]
[SourceQuality "1"]
[TimeControl "40/6000+30:3000+30"]

1. e4 {[%emt 0:00:13]} e5 {[%emt 0:00:08]} 2. Nf3 {[%emt 0:00:12]} Nc6 {[%emt 0:00:17]} 3. Bb5 {[%emt 0:00:20]} a6 {[%emt 0:00:11]} 4. Ba4 {[%emt 0:00:09]} Nf6 {[%emt 0:00:31]} 5. O-O {[%emt 0:00:23]} Bc5 {[%emt 0:00:28]} 6. c3 {[%emt 0:00:50]} O-O {[%emt 0:00:16]} 7. d4 {[%emt 0:02:35]} Ba7 {[%emt 0:00:25]} 8. dxe5 {[%emt 0:01:07]} Nxe4 {[%emt 0:00:49]} 9. Qd5 {[%emt 0:00:35]} Nc5 {[%emt 0:00:38]} 10. Bc2 {[%emt 0:00:05]} Ne7 {[%emt 0:00:07]} 11. Qd1 {[%emt 0:01:30]} d5 {[%emt 0:00:38]} 12. exd6 {[%emt 0:00:17]} Qxd6 {[%emt 0:00:22]} 13. Qxd6 {[%emt 0:00:05]} cxd6 {[%emt 0:00:08]} 14. Re1 {[%emt 0:10:44]} Bf5 {[%emt 0:09:57]} 15. Na3 {[%emt 0:11:05]} Bxc2 {[%emt 0:14:09]} 16. Nxc2 {[%emt 0:01:26]} Nc6 {[%emt 0:02:22]} 17. Rd1 {[%emt 0:10:58]} Ne5 {[%emt 0:15:28]} 18. Nce1 {[%emt 0:20:45]} Rfe8 {[%emt 0:10:11]} 19. Nd4 {[%emt 0:06:41]} Rad8 {[%emt 0:03:57]} 20. Kf1 {[%emt 0:05:58]} Ne6 {[%emt 0:10:39]} 21. Nec2 {[%emt 0:01:00]} d5 {[%emt 0:02:32]} 22. Rb1 {[%emt 0:04:31]} 1/2-1/2

[Event "German Bundesliga 2023-24"]
[Site "Germany"]
[Date "2024.02.25"]
[Round "11.40"]
[White "Gungl, Theo"]
[Black "Vandenbussche, Thibaut"]
[Result "0-1"]
[ECO "C07"]
[WhiteElo "2372"]
[BlackElo "2434"]
[Annotator "TA"]
[PlyCount "84"]
[EventDate "2023.10.20"]
[EventType "team-tourn"]
[EventCountry "GER"]
[SourceTitle "playchess.com"]
[Source "ChessBase"]
[SourceQuality "1"]
[TimeControl "40/6000+30:3000+30"]

{[%evp 23,84,20,16,7,25,13,18,9,12,14,9,11,13,19,19,0,0,3,19,14,39,31,47,0,0,0,0,0,0,0,0,0,0,-11,-29,-86,-70,-85,-20,-8,-8,-9,-42,-37,-6,-1478,-1263,-29968,-29969,-29975,-29980,-29981,-29982,-29982,-29983,-29982,-29982,-29994,-29995,-29996,-29997,-29997,-634]} 1. e4 {[%emt 0:00:03]} e6 {[%emt 0:00:16]} 2. d4 {[%emt 0:00:05]} d5 {[%emt 0:00:04]} 3. Nd2 {[%emt 0:00:05]} c5 {[%emt 0:00:52]} 4. Ngf3 {[%emt 0:00:47]} cxd4 {[%emt 0:01:08]} 5. exd5 {[%emt 0:00:09]} Qxd5 {[%emt 0:00:08]} 6. Bc4 {[%emt 0:00:07]} Qd6 {[%emt 0:00:12]} 7. O-O {[%emt 0:00:07]} Nf6 {[%emt 0:00:21]} 8. Nb3 {[%emt 0:00:24]} Nc6 {[%emt 0:00:08]} 9. Nbxd4 {[%emt 0:00:08]} Nxd4 {[%emt 0:00:11]} 10. Nxd4 {[%emt 0:00:20]} Be7 {[%emt 0:00:53]} 11. c3 {[%emt 0:03:09]} O-O {[%emt 0:00:50]} 12. Qf3 {[%emt 0:06:24]} Qc7 {[%emt 0:03:43]} 13. Bd3 {[%emt 0:07:43]} Bd7 {[%emt 0:06:35]} 14. Bg5 {[%emt 0:04:50]} Nd5 {[%emt 0:05:52]} 15. Bxe7 {[%emt 0:07:26] The position is equal.} Nxe7 {[%emt 0:00:03]} 16. Rfe1 {[%emt 0:01:45]} Rad8 {[%emt 0:05:57]} 17. Rad1 {[%emt 0:02:39]} Bc6 {[%emt 0:16:25]} 18. Qh3 {[%emt 0:13:18][%csl Gd3][%cal Rh3h7]} (18. Nxc6 {simplifies} bxc6 19. Qe2 Rd7 20. Be4) 18... Ng6 {[%emt 0:05:24]} 19. Bxg6 {[%emt 0:20:56]} hxg6 {[%emt 0:03:41]} 20. Qe3 {[%emt 0:05:52]} Bd5 {[%emt 0:08:00]} 21. b3 {[%emt 0:01:25]} Qa5 {[%emt 0:05:15][%cal Ob7b5]} 22. c4 {[%emt 0:02:25]} Bc6 {[%emt 0:00:18]} 23. Nxc6 {[%emt 0:03:48]} (23. a4 $14 {is more appropriate.}) 23... bxc6 $11 {[%emt 0:00:08]} 24. Qe2 {[%emt 0:00:21]} c5 {[%emt 0:02:15]} 25. f4 {[%emt 0:08:49]} Rd4 {[%emt 0:05:56]} 26. Rxd4 {[%emt 0:00:43]} cxd4 {[%emt 0:00:01][%mdl 4096] Endgame. KQR-KQR} 27. Rd1 {[%emt 0:00:27]} Rd8 {[%emt 0:00:06]} 28. g3 {[%emt 0:11:31]} g5 {[%emt 0:04:14]} 29. Qe5 {[%emt 0:04:40]} (29. fxg5 $11 {remains equal.} Qxg5 30. Kg2) 29... Qxa2 $17 {[%emt 0:02:03]} 30. Qxg5 {[%emt 0:00:18] [#]} Rd7 {[%emt 0:12:46]} (30... f6 $1 $17 {[%cal Rf6g5]} 31. Qg4 Qxb3 32. Qxe6+ Kf8) 31. Qb5 $11 {[%emt 0:01:20]} Qe2 {[%emt 0:00:22]} 32. Qxd7 {[%emt 0:01:18]} Qxd1+ {[%emt 0:00:07] KQ-KQ} 33. Kg2 $1 {[%emt 0:00:16]} g6 {[%emt 0:02:16] White must now prevent ...Qc2+.} 34. Qd8+ $2 {[%emt 0:03:12][%mdl 8192] Loses the game.} (34. Qd6 $11) 34... Kg7 $19 {[%emt 0:00:16]} 35. Qd6 {[%emt 0:00:34]} Qe2+ {[%emt 0:11:02] Black mates.} ({Stronger than} 35... Qxb3 36. Qxd4+ Kf8 37. Qd8+ Kg7 38. Qd4+ Kf8 39. Qd6+ Ke8 40. Qc6+ Kf8 41. Kh3 $11) 36. Kh3 {[%emt 0:00:01]} d3 {[%emt 0:00:40]} 37. Qd4+ {[%emt 0:00:02] [#]} e5 $1 {[%emt 0:05:31][%mdl 512]} 38. fxe5 {[%emt 0:00:01]} d2 {[%emt 0:00:35]} 39. e6+ {[%emt 0:00:16]} f6 {[%emt 0:00:26]} 40. Qd7+ {[%emt 0:01:00]} Kh6 {[%emt 0:00:18]} 41. e7 {[%emt 0:12:03]} Qf1+ {[%emt 0:01:25]} 42. Kh4 {[%emt 0:00:09]} g5+ {[%emt 0:00:11] Weighted Error Value: White=0.39/Black=0.07 (flawless) .  Loses game:     	White=1     	---        Mistake:       	White=2     	Black=1      Inaccurate:     	White=1     	Black=1      OK:         	White=9     	Black=9      Best:        	---       	Black=3      Strong:       	White=1     	---} 0-1

[Event "German Bundesliga 2023-24"]
[Site "Germany"]
[Date "2024.02.25"]
[Round "11.41"]
[White "Livaic, Leon"]
[Black "Warmerdam, Max"]
[Result "1/2-1/2"]
[ECO "B76"]
[WhiteElo "2549"]
[BlackElo "2636"]
[Annotator "TA"]
[PlyCount "46"]
[EventDate "2023.10.20"]
[EventType "team-tourn"]
[EventCountry "GER"]
[SourceTitle "playchess.com"]
[Source "ChessBase"]
[SourceQuality "1"]
[TimeControl "40/6000+30:3000+30"]

{[%evp 20,46,19,0,25,18,29,16,36,51,52,37,60,47,88,83,91,79,77,74,64,0,0,0,0,0,0,0,0]} 1. e4 {[%emt 0:00:05]} c5 {[%emt 0:00:08]} 2. Nf3 {[%emt 0:00:08]} d6 {[%emt 0:00:09]} 3. d4 {[%emt 0:00:17]} cxd4 {[%emt 0:00:06]} 4. Nxd4 {[%emt 0:00:03]} Nf6 {[%emt 0:00:09]} 5. Nc3 {[%emt 0:00:06]} Nc6 {[%emt 0:02:32]} 6. h4 {[%emt 0:02:02]} g6 {[%emt 0:05:37]} 7. f3 {[%emt 0:00:59]} Bg7 {[%emt 0:00:38]} 8. Be3 {[%emt 0:00:37]} O-O {[%emt 0:01:02]} 9. Qd2 {[%emt 0:02:54]} d5 {[%emt 0:00:56]} 10. Nxc6 {[%emt 0:05:59]} bxc6 {[%emt 0:01:33]} 11. O-O-O {[%emt 0:21:06]} Be6 {[%emt 0:08:58]} 12. exd5 {[%emt 0:06:46]} Nxd5 {[%emt 0:02:24] [#] And now ...Bxc3 would win.} 13. Bd4 {[%emt 0:02:03] Threatening Bxg7.} Bxd4 {[%emt 0:02:10]} 14. Qxd4 {[%emt 0:00:07]} Qb6 {[%emt 0:00:20]} 15. Na4 {[%emt 0:09:35]} Qa5 {[%emt 0:15:24] Strongly threatening ...Nb4.} 16. h5 {[%emt 0:13:06][%cal Bh4h5,Bh5h6][%mdl 32]} g5 {[%emt 0:09:08]} 17. h6 {[%emt 0:03:48]} f6 {[%emt 0:01:20]} 18. Qe4 {[%emt 0:23:41]} Bf7 {[%emt 0:07:14]} 19. Bd3 {[%emt 0:01:17] White is more active.} Bg6 {[%emt 0:00:20]} 20. Qe6+ {[%emt 0:00:18]} (20. Qc4 $14) 20... Bf7 $11 {[%emt 0:18:38] The position is equal.} 21. Qf5 {[%emt 0:00:34]} Bg6 {[%emt 0:00:06]} 22. Qe6+ {[%emt 0:01:56]} Bf7 {[%emt 0:01:04]} 23. Qf5 {[%emt 0:00:06]} Bg6 {[%emt 0:00:05] Weighted Error Value: White=0.08 (flawless) /Black=0.11 (very precise) .  Mistake:       	White=1     	---        Inaccurate:     	---       	Black=1      OK:         	White=6     	Black=5      Best:        	---       	Black=3} 1/2-1/2